[Event "MČR juniorů a juniorek v rapid šachu 2024"]
[Site "Hotel Fit Fun, Harrachov, Czech Republic"]
[Date "2024.09.21"]
[Round "6.32"]
[White "Plzak David"]
[Black "Dufkova Tereza"]
[Result "1-0"]
[TimeControl "20+5"]
[WhiteFideId "23776234"]
[BlackFideId "23744383"]
[WhiteElo "1625"]
[BlackElo "1601"]

1. e4 {[%clk 00:20:09]} d5 {[%clk 00:20:09]} {[%emt 00:00:02]} 2. exd5 {[%clk
00:20:12]} {[%emt 00:00:02]} Nf6 {[%clk 00:20:12]} {[%emt 00:00:01]} 3. d4
{[%clk 00:19:50]} {[%emt 00:00:27]} Nxd5 {[%clk 00:19:43]} {[%emt 00:00:35]} 4.
Nf3 {[%clk 00:19:42]} {[%emt 00:00:13]} Bg4 {[%clk 00:19:45]} {[%emt 00:00:03]}
5. Be2 {[%clk 00:19:42]} {[%emt 00:00:04]} e6 {[%clk 00:19:21]} {[%emt
00:00:30]} 6. Be3 {[%clk 00:19:05]} {[%emt 00:00:41]} Nd7 {[%clk 00:18:24]}
{[%emt 00:01:03]} 7. h3 {[%clk 00:18:19]} {[%emt 00:00:51]} Bf5 {[%clk
00:17:15]} {[%emt 00:01:13]} 8. c3 {[%clk 00:17:15]} {[%emt 00:01:09]} Bd6
{[%clk 00:17:05]} {[%emt 00:00:15]} 9. Nbd2 {[%clk 00:16:59]} {[%emt 00:00:21]}
N7f6 {[%clk 00:15:42]} {[%emt 00:01:29]} 10. Nc4 {[%clk 00:16:13]} {[%emt
00:00:51]} Bf4 {[%clk 00:14:35]} {[%emt 00:01:12]} 11. Bxf4 {[%clk 00:14:34]}
{[%emt 00:01:43]} Nxf4 {[%clk 00:14:37]} {[%emt 00:00:03]} 12. Rg1 {[%clk
00:13:57]} {[%emt 00:00:42]} Qd5 {[%clk 00:12:00]} {[%emt 00:02:42]} 13. Ne3
{[%clk 00:13:30]} {[%emt 00:00:32]} Qc6 {[%clk 00:10:31]} {[%emt 00:01:32]} 14.
a4 {[%clk 00:11:32]} {[%emt 00:02:04]} Nxe2 {[%clk 00:09:29]} {[%emt 00:01:08]}
15. Qxe2 {[%clk 00:11:17]} {[%emt 00:00:19]} O-O {[%clk 00:09:11]} {[%emt
00:00:23]} 16. Ne5 {[%clk 00:10:45]} {[%emt 00:00:37]} Qb6 {[%clk 00:08:39]}
{[%emt 00:00:37]} 17. g4 {[%clk 00:09:58]} {[%emt 00:00:52]} Be4 {[%clk
00:07:57]} {[%emt 00:00:47]} 18. g5 {[%clk 00:09:33]} {[%emt 00:00:29]} Nd5
{[%clk 00:04:44]} {[%emt 00:03:20]} 19. Nxd5 {[%clk 00:08:43]} {[%emt
00:00:54]} exd5 {[%clk 00:04:44]} {[%emt 00:00:05]} 20. Nd7 {[%clk 00:05:47]}
{[%emt 00:03:01]} Qg6 {[%clk 00:04:13]} {[%emt 00:00:26]} 21. Nxf8 {[%clk
00:05:26]} {[%emt 00:00:37]} Rxf8 {[%clk 00:04:17]} {[%emt 00:00:01]} 22. O-O-O
{[%clk 00:05:22]} {[%emt 00:00:08]} Qf5 {[%clk 00:02:42]} {[%emt 00:01:40]} 23.
h4 {[%clk 00:04:17]} {[%emt 00:01:10]} Bf3 {[%clk 00:02:07]} {[%emt 00:00:41]}
24. Qe3 {[%clk 00:03:55]} {[%emt 00:00:26]} Bxd1 {[%clk 00:02:08]} {[%emt
00:00:04]} 25. Rxd1 {[%clk 00:03:59]} g6 {[%clk 00:01:33]} {[%emt 00:00:41]} 26.
Re1 {[%clk 00:03:28]} {[%emt 00:00:36]} b6 {[%clk 00:01:22]} {[%emt 00:00:16]}
27. Rh1 {[%clk 00:02:26]} {[%emt 00:01:05]} Qd7 {[%clk 00:01:01]} {[%emt
00:00:27]} 28. b3 {[%clk 00:02:20]} {[%emt 00:00:12]} Re8 {[%clk 00:01:00]}
{[%emt 00:00:05]} 29. Qf3 {[%clk 00:01:51]} {[%emt 00:00:34]} Qd6 {[%clk
00:00:45]} {[%emt 00:00:20]} 30. Kb2 {[%clk 00:01:49]} {[%emt 00:00:07]} c5
{[%clk 00:00:43]} {[%emt 00:00:08]} 31. dxc5 {[%clk 00:01:49]} {[%emt
00:00:04]} bxc5 {[%clk 00:00:41]} {[%emt 00:00:07]} 32. Rd1 {[%clk 00:01:49]}
{[%emt 00:00:04]} Re5 {[%clk 00:00:34]} {[%emt 00:00:13]} 33. Rd2 {[%clk
00:01:43]} {[%emt 00:00:10]} Qe6 {[%clk 00:00:24]} {[%emt 00:00:15]} 34. Qd3
{[%clk 00:01:28]} {[%emt 00:00:19]} Kf8 {[%clk 00:00:25]} {[%emt 00:00:05]} 35.
Qb5 {[%clk 00:01:26]} {[%emt 00:00:07]} c4 {[%clk 00:00:16]} {[%emt 00:00:15]}
36. bxc4 {[%clk 00:01:01]} {[%emt 00:00:29]} dxc4 {[%clk 00:00:17]} {[%emt
00:00:04]} 37. Qb8+ {[%clk 00:00:53]} {[%emt 00:00:13]} Kg7 {[%clk 00:00:21]}
{[%emt 00:00:02]} 38. Qxa7 {[%clk 00:00:42]} {[%emt 00:00:15]} Re4 {[%clk
00:00:15]} {[%emt 00:00:11]} 39. Qc5 {[%clk 00:00:33]} {[%emt 00:00:14]} Rxh4
{[%clk 00:00:15]} {[%emt 00:00:06]} 40. a5 {[%clk 00:00:28]} {[%emt 00:00:10]}
Qe8 {[%clk 00:00:12]} {[%emt 00:00:08]} 41. Rd4 {[%clk 00:00:20]} {[%emt
00:00:12]} Qb8+ {[%clk 00:00:13]} {[%emt 00:00:05]} 42. Kc2 {[%clk 00:00:24]}
{[%emt 00:00:01]} Rxd4 {[%clk 00:00:00]} {[%emt 00:00:13]} 1-0



[ePGN "0.1;DGT LiveChess/2.2.6"]

[Event "MČR juniorů a juniorek v rapid šachu 2024"]
[Site "Hotel Fit Fun, Harrachov, Czech Republic"]
[Date "2024.09.21"]
[Round "6.33"]
[White "Boff Vojtech"]
[Black "Musil Tomas"]
[Result "1-0"]
[TimeControl "20+5"]
[WhiteFideId "23733969"]
[BlackFideId "23762888"]
[WhiteElo "1719"]
[BlackElo "1519"]

1. d4 {[%clk 00:20:08]} {[%emt 00:00:02]} Nf6 {[%clk 00:20:08]} {[%emt
00:00:03]} 2. Nf3 {[%clk 00:20:10]} {[%emt 00:00:02]} e6 {[%clk 00:20:12]}
{[%emt 00:00:01]} 3. c4 {[%clk 00:20:07]} {[%emt 00:00:08]} Bb4+ {[%clk
00:20:09]} {[%emt 00:00:07]} 4. Nbd2 {[%clk 00:20:07]} {[%emt 00:00:05]} O-O
{[%clk 00:20:10]} {[%emt 00:00:04]} 5. a3 {[%clk 00:20:09]} {[%emt 00:00:03]}
Bxd2+ {[%clk 00:20:12]} {[%emt 00:00:03]} 6. Bxd2 {[%clk 00:20:12]} {[%emt
00:00:02]} d5 {[%clk 00:20:10]} {[%emt 00:00:08]} 7. e3 {[%clk 00:20:06]}
{[%emt 00:00:11]} b6 {[%clk 00:20:11]} {[%emt 00:00:04]} 8. Bb4 {[%clk
00:19:55]} {[%emt 00:00:15]} Re8 {[%clk 00:20:08]} {[%emt 00:00:08]} 9. Be2
{[%clk 00:19:56]} {[%emt 00:00:04]} Bb7 {[%clk 00:20:11]} {[%emt 00:00:03]} 10.
O-O {[%clk 00:19:40]} {[%emt 00:00:19]} Nbd7 {[%clk 00:19:39]} {[%emt
00:00:37]} 11. Rc1 {[%clk 00:19:37]} {[%emt 00:00:09]} a5 {[%clk 00:19:34]}
{[%emt 00:00:10]} 12. Bc3 {[%clk 00:19:38]} {[%emt 00:00:04]} Ne4 {[%clk
00:19:27]} {[%emt 00:00:13]} 13. cxd5 {[%clk 00:19:38]} {[%emt 00:00:04]} Bxd5
{[%clk 00:19:24]} {[%emt 00:00:09]} 14. Qc2 {[%clk 00:19:17]} {[%emt 00:00:26]}
Rc8 {[%clk 00:19:09]} {[%emt 00:00:20]} 15. Bd2 {[%clk 00:19:11]} {[%emt
00:00:10]} c5 {[%clk 00:18:48]} {[%emt 00:00:26]} 16. dxc5 {[%clk 00:18:57]}
{[%emt 00:00:19]} Rxc5 {[%clk 00:18:40]} {[%emt 00:00:13]} 17. Qb1 {[%clk
00:18:59]} {[%emt 00:00:03]} Qa8 {[%clk 00:15:33]} {[%emt 00:03:12]} 18. b4
{[%clk 00:18:52]} {[%emt 00:00:12]} Nxd2 {[%clk 00:15:08]} {[%emt 00:00:30]} 19.
Nxd2 {[%clk 00:18:50]} {[%emt 00:00:07]} Rxc1 {[%clk 00:14:58]} {[%emt
00:00:16]} 20. Rxc1 {[%clk 00:18:53]} {[%emt 00:00:02]} Bxg2 {[%clk 00:14:49]}
{[%emt 00:00:14]} 21. e4 {[%clk 00:18:15]} {[%emt 00:00:43]} Bh3 {[%clk
00:14:33]} {[%emt 00:00:20]} 22. Rc3 {[%clk 00:18:12]} {[%emt 00:00:09]} axb4
{[%clk 00:13:18]} {[%emt 00:01:20]} 23. axb4 {[%clk 00:18:13]} {[%emt
00:00:03]} Bf5 {[%clk 00:12:03]} {[%emt 00:01:20]} 24. exf5 {[%clk 00:18:13]}
{[%emt 00:00:06]} exf5 {[%clk 00:12:06]} 25. Bb5 {[%clk 00:18:01]} {[%emt
00:00:17]} Qd5 {[%clk 00:11:53]} {[%emt 00:00:18]} 26. Bxd7 {[%clk 00:18:02]}
{[%emt 00:00:04]} Qxd7 {[%clk 00:11:26]} {[%emt 00:00:32]} 27. Qd3 {[%clk
00:18:02]} {[%emt 00:00:05]} Re1+ {[%clk 00:10:25]} {[%emt 00:01:07]} 28. Nf1
{[%clk 00:18:05]} {[%emt 00:00:01]} Qxd3 {[%clk 00:10:01]} {[%emt 00:00:30]} 29.
Rc8+ {[%clk 00:18:04]} {[%emt 00:00:06]} 1-0



[ePGN "0.1;DGT LiveChess/2.2.6"]

[Event "MČR juniorů a juniorek v rapid šachu 2024"]
[Site "Hotel Fit Fun, Harrachov, Czech Republic"]
[Date "2024.09.21"]
[Round "6.34"]
[White "Zadrapova Gabriela"]
[Black "Tichy Richard"]
[Result "1-0"]
[TimeControl "20+5"]
[WhiteFideId "23753056"]
[BlackFideId "23727063"]
[WhiteElo "1456"]
[BlackElo "1698"]

1. e4 {[%clk 00:20:07]} {[%emt 00:00:03]} e5 {[%clk 00:20:10]} 2. Nf3 {[%clk
00:20:11]} {[%emt 00:00:01]} Nf6 {[%clk 00:20:13]} {[%emt 00:00:02]} 3. Nc3
{[%clk 00:20:15]} Nc6 {[%clk 00:20:18]} {[%emt 00:00:01]} 4. Bb5 {[%clk
00:20:19]} a6 {[%clk 00:20:20]} {[%emt 00:00:04]} 5. Bxc6 {[%clk 00:20:22]}
{[%emt 00:00:01]} dxc6 {[%clk 00:20:23]} {[%emt 00:00:02]} 6. Nxe5 {[%clk
00:20:26]} {[%emt 00:00:01]} Bd6 {[%clk 00:20:24]} {[%emt 00:00:04]} 7. d4
{[%clk 00:20:26]} {[%emt 00:00:05]} O-O {[%clk 00:19:53]} {[%emt 00:00:36]} 8.
O-O {[%clk 00:20:28]} {[%emt 00:00:02]} c5 {[%clk 00:19:40]} {[%emt 00:00:19]}
9. Re1 {[%clk 00:20:02]} {[%emt 00:00:31]} cxd4 {[%clk 00:19:32]} {[%emt
00:00:13]} 10. Qxd4 {[%clk 00:20:04]} {[%emt 00:00:03]} c5 {[%clk 00:19:03]}
{[%emt 00:00:34]} 11. Qd3 {[%clk 00:19:13]} {[%emt 00:00:56]} Bxe5 {[%clk
00:19:05]} {[%emt 00:00:03]} 12. f4 {[%clk 00:18:56]} {[%emt 00:00:21]} Qxd3
{[%clk 00:18:49]} {[%emt 00:00:22]} 13. cxd3 {[%clk 00:19:00]} Bc7 {[%emt
00:00:17]} 14. e5 {[%clk 00:18:52]} {[%emt 00:00:04]} Nh5 {[%emt 00:00:34]} 15.
Nd5 {[%clk 00:18:10]} {[%emt 00:00:26]} Ba5 16. Re2 {[%emt 00:00:47]} Bf5
{[%clk 00:18:00]} {[%emt 00:00:06]} 17. Ne7+ {[%emt 00:00:07]} Kh8 {[%clk
00:17:53]} {[%emt 00:00:09]} 18. Nxf5 {[%clk 00:17:58]} {[%emt 00:00:12]} g6 19.
Nd6 {[%emt 00:00:38]} b5 {[%emt 00:00:27]} 20. g3 {[%clk 00:17:38]} {[%emt
00:00:04]} Rad8 {[%clk 00:16:48]} {[%emt 00:00:47]} 21. Be3 {[%clk 00:17:31]}
{[%emt 00:00:11]} Bb6 {[%clk 00:16:20]} {[%emt 00:00:33]} 22. Rc1 {[%clk
00:17:24]} {[%emt 00:00:10]} f5 {[%clk 00:16:05]} {[%emt 00:00:22]} 23. Bxc5
{[%clk 00:17:14]} {[%emt 00:00:15]} Bxc5+ {[%clk 00:16:05]} {[%emt 00:00:05]}
24. Rxc5 {[%clk 00:17:17]} {[%emt 00:00:02]} g5 {[%clk 00:15:57]} {[%emt
00:00:13]} 25. fxg5 {[%clk 00:16:44]} {[%emt 00:00:38]} f4 {[%clk 00:15:43]}
{[%emt 00:00:19]} 26. g4 {[%emt 00:00:28]} f3 {[%clk 00:15:32]} {[%emt
00:00:03]} 27. Rf2 {[%emt 00:00:29]} Ng7 {[%clk 00:14:52]} {[%emt 00:00:18]} 28.
h4 {[%clk 00:16:04]} {[%emt 00:00:39]} Rf4 {[%clk 00:14:37]} {[%emt 00:00:20]}
29. Kf1 {[%clk 00:15:49]} {[%emt 00:00:20]} Ne6 {[%clk 00:14:07]} {[%emt
00:00:35]} 30. Rc6 {[%clk 00:15:42]} {[%emt 00:00:11]} a5 {[%clk 00:13:25]}
{[%emt 00:00:48]} 31. h5 {[%clk 00:15:31]} {[%emt 00:00:15]} Nxg5 {[%clk
00:13:20]} {[%emt 00:00:10]} 32. Rc7 {[%clk 00:15:31]} {[%emt 00:00:05]} Kg8
{[%clk 00:13:05]} {[%emt 00:00:20]} 33. h6 {[%clk 00:15:30]} {[%emt 00:00:07]}
Ne6 {[%clk 00:12:31]} {[%emt 00:00:39]} 34. Ra7 {[%clk 00:15:23]} {[%emt
00:00:10]} a4 {[%clk 00:12:10]} {[%emt 00:00:28]} 35. Nxb5 {[%clk 00:13:46]}
{[%emt 00:01:41]} Rxd3 {[%clk 00:12:09]} {[%emt 00:00:07]} 36. Ke1 {[%clk
00:13:01]} {[%emt 00:00:48]} Re3+ {[%emt 00:00:29]} 37. Kd1 {[%emt 00:00:05]}
Rd3+ {[%clk 00:10:14]} {[%emt 00:01:27]} 38. Kc2 {[%clk 00:12:47]} {[%emt
00:00:18]} Nc5 {[%clk 00:10:10]} {[%emt 00:00:10]} 39. Rg7+ {[%clk 00:12:15]}
{[%emt 00:00:36]} Kf8 {[%clk 00:10:02]} {[%emt 00:00:14]} 40. Rxh7 {[%clk
00:11:41]} {[%emt 00:00:38]} Rxg4 {[%clk 00:10:00]} {[%emt 00:00:07]} 41. Rc7
{[%clk 00:10:55]} {[%emt 00:00:51]} Rc4+ {[%clk 00:08:59]} {[%emt 00:01:07]} 42.
Nc3 {[%clk 00:10:58]} {[%emt 00:00:02]} a3 {[%clk 00:08:44]} {[%emt 00:00:20]}
43. h7 {[%clk 00:10:35]} {[%emt 00:00:28]} Rh4 {[%clk 00:08:22]} {[%emt
00:00:27]} 44. Rxc5 {[%clk 00:10:30]} {[%emt 00:00:10]} axb2 {[%clk 00:08:12]}
{[%emt 00:00:15]} 45. Kxd3 {[%clk 00:10:15]} {[%emt 00:00:19]} 1-0



[ePGN "0.1;DGT LiveChess/2.2.6"]

[Event "MČR juniorů a juniorek v rapid šachu 2024"]
[Site "Hotel Fit Fun, Harrachov, Czech Republic"]
[Date "2024.09.21"]
[Round "6.35"]
[White "Jun Rostislav"]
[Black "Kopecka Anna"]
[Result "1-0"]
[TimeControl "20+5"]
[WhiteFideId "23719524"]
[BlackFideId "23767740"]
[WhiteElo "1641"]
[BlackElo "1431"]

1. e4 {[%clk 00:20:07]} {[%emt 00:00:03]} c5 {[%clk 00:20:10]} {[%emt
00:00:01]} 2. Nf3 {[%clk 00:20:11]} {[%emt 00:00:01]} Nc6 {[%clk 00:20:13]} 3.
d4 {[%clk 00:20:16]} cxd4 {[%clk 00:20:17]} 4. Nxd4 {[%clk 00:20:20]} Nf6
{[%clk 00:20:21]} {[%emt 00:00:01]} 5. Nc3 {[%clk 00:20:22]} {[%emt 00:00:03]}
g6 {[%clk 00:20:25]} 6. Be3 {[%clk 00:20:18]} {[%emt 00:00:08]} Bg7 {[%clk
00:20:28]} {[%emt 00:00:02]} 7. Be2 {[%clk 00:20:18]} {[%emt 00:00:04]} O-O
{[%clk 00:20:31]} {[%emt 00:00:03]} 8. O-O {[%clk 00:20:20]} {[%emt 00:00:03]}
Nxd4 {[%clk 00:20:26]} {[%emt 00:00:10]} 9. Bxd4 {[%clk 00:20:22]} {[%emt
00:00:03]} d6 {[%clk 00:20:30]} {[%emt 00:00:01]} 10. f4 {[%clk 00:19:58]}
{[%emt 00:00:29]} Bd7 {[%clk 00:19:52]} {[%emt 00:00:43]} 11. Kh1 {[%clk
00:19:26]} {[%emt 00:00:36]} Bc6 {[%clk 00:19:48]} {[%emt 00:00:10]} 12. Bf3
{[%clk 00:18:28]} {[%emt 00:01:03]} Nd7 {[%clk 00:18:43]} {[%emt 00:01:09]} 13.
Bxg7 {[%clk 00:18:16]} {[%emt 00:00:17]} Kxg7 {[%clk 00:18:47]} {[%emt
00:00:01]} 14. a3 {[%clk 00:17:00]} {[%emt 00:01:22]} a5 {[%clk 00:18:29]}
{[%emt 00:00:23]} 15. Qe2 {[%clk 00:14:44]} {[%emt 00:02:21]} Qb6 {[%clk
00:18:10]} {[%emt 00:00:24]} 16. Rab1 {[%clk 00:14:35]} {[%emt 00:00:15]} Nc5
{[%clk 00:18:13]} {[%emt 00:00:02]} 17. Qf2 {[%clk 00:13:32]} {[%emt 00:01:07]}
Rac8 {[%clk 00:17:18]} {[%emt 00:00:59]} 18. h4 {[%clk 00:12:42]} {[%emt
00:00:57]} Nd7 {[%clk 00:16:59]} {[%emt 00:00:23]} 19. Qg3 {[%clk 00:10:35]}
{[%emt 00:02:12]} Qd8 {[%clk 00:15:14]} {[%emt 00:01:49]} 20. Bg4 {[%clk
00:07:23]} {[%emt 00:03:18]} e6 {[%clk 00:13:47]} {[%emt 00:01:32]} 21. Rbd1
{[%clk 00:05:50]} {[%emt 00:01:38]} Nf6 {[%clk 00:13:09]} {[%emt 00:00:43]} 22.
Bf3 {[%clk 00:05:53]} {[%emt 00:00:02]} Rc7 {[%clk 00:11:52]} {[%emt 00:01:21]}
23. e5 {[%clk 00:05:37]} {[%emt 00:00:22]} Bxf3 {[%clk 00:11:10]} {[%emt
00:00:46]} 24. exf6+ {[%clk 00:05:41]} {[%emt 00:00:02]} Qxf6 {[%clk 00:10:00]}
{[%emt 00:01:14]} 25. Rxf3 {[%clk 00:05:41]} {[%emt 00:00:05]} d5 {[%clk
00:07:47]} {[%emt 00:02:18]} 26. Qg5 {[%clk 00:05:23]} {[%emt 00:00:24]} Qxg5
{[%clk 00:07:40]} {[%emt 00:00:12]} 27. hxg5 {[%clk 00:05:10]} {[%emt
00:00:18]} f6 {[%clk 00:06:45]} {[%emt 00:01:00]} 28. Rd2 {[%clk 00:04:07]}
{[%emt 00:01:08]} fxg5 {[%clk 00:06:02]} {[%emt 00:00:48]} 29. fxg5 {[%clk
00:04:10]} {[%emt 00:00:01]} Rxf3 {[%clk 00:05:58]} {[%emt 00:00:10]} 30. gxf3
{[%clk 00:04:14]} Rc4 {[%clk 00:05:06]} {[%emt 00:00:57]} 31. Kg2 {[%clk
00:03:43]} {[%emt 00:00:35]} Kf7 {[%clk 00:04:55]} {[%emt 00:00:16]} 32. Kg3
{[%clk 00:03:35]} {[%emt 00:00:13]} Ke7 {[%clk 00:04:58]} {[%emt 00:00:01]} 33.
f4 {[%clk 00:02:41]} {[%emt 00:01:00]} Kd6 {[%clk 00:04:52]} {[%emt 00:00:11]}
34. Kf3 {[%clk 00:02:09]} {[%emt 00:00:38]} Rc5 {[%clk 00:03:57]} {[%emt
00:00:58]} 35. Ne4+ {[%clk 00:02:11]} {[%emt 00:00:05]} 1-0



[ePGN "0.1;DGT LiveChess/2.2.6"]

[Event "MČR juniorů a juniorek v rapid šachu 2024"]
[Site "Hotel Fit Fun, Harrachov, Czech Republic"]
[Date "2024.09.21"]
[Round "6.36"]
[White "Vondra Filip"]
[Black "Krizan Jakub"]
[Result "0-1"]
[TimeControl "20+5"]
[WhiteFideId "23725176"]
[BlackFideId "23717017"]
[WhiteElo "1598"]
[BlackElo "1000"]

1. e4 {[%clk 00:20:08]} {[%emt 00:00:02]} c5 {[%clk 00:20:09]} {[%emt
00:00:02]} 2. Nf3 {[%clk 00:20:11]} {[%emt 00:00:01]} Nc6 {[%clk 00:20:13]}
{[%emt 00:00:01]} 3. c4 {[%clk 00:20:15]} e6 {[%clk 00:20:14]} {[%emt
00:00:03]} 4. Nc3 {[%clk 00:20:18]} {[%emt 00:00:03]} Be7 {[%clk 00:20:17]}
{[%emt 00:00:02]} 5. d4 {[%clk 00:20:14]} {[%emt 00:00:09]} cxd4 {[%clk
00:20:03]} {[%emt 00:00:19]} 6. Nxd4 {[%clk 00:20:19]} Nxd4 {[%clk 00:19:45]}
{[%emt 00:00:24]} 7. Qxd4 {[%clk 00:20:22]} Bf6 {[%clk 00:19:18]} {[%emt
00:00:32]} 8. e5 {[%clk 00:20:05]} {[%emt 00:00:22]} Bg5 {[%clk 00:19:18]}
{[%emt 00:00:06]} 9. Be2 {[%clk 00:19:56]} {[%emt 00:00:14]} Bxc1 {[%clk
00:18:28]} {[%emt 00:00:54]} 10. Rxc1 {[%clk 00:19:59]} {[%emt 00:00:02]} Ne7
{[%clk 00:18:32]} 11. O-O {[%clk 00:19:49]} {[%emt 00:00:15]} O-O {[%clk
00:18:33]} {[%emt 00:00:04]} 12. Rfd1 {[%clk 00:18:56]} {[%emt 00:00:58]} f6
{[%clk 00:17:14]} {[%emt 00:01:24]} 13. exf6 {[%clk 00:18:20]} {[%emt
00:00:41]} Rxf6 {[%clk 00:17:14]} {[%emt 00:00:05]} 14. Ne4 {[%clk 00:18:22]}
{[%emt 00:00:04]} Rg6 {[%clk 00:16:08]} {[%emt 00:01:10]} 15. Nc5 {[%clk
00:18:19]} {[%emt 00:00:08]} Nf5 {[%clk 00:15:45]} {[%emt 00:00:29]} 16. Qd3
{[%clk 00:17:06]} {[%emt 00:01:17]} d6 {[%clk 00:15:29]} {[%emt 00:00:21]} 17.
Bh5 {[%clk 00:16:56]} {[%emt 00:00:15]} Rh6 {[%clk 00:15:01]} {[%emt 00:00:33]}
18. Qf3 {[%clk 00:14:42]} {[%emt 00:02:19]} Qe7 {[%clk 00:13:59]} {[%emt
00:01:08]} 19. Ne4 {[%clk 00:13:40]} {[%emt 00:01:06]} Bd7 {[%clk 00:13:52]}
{[%emt 00:00:12]} 20. Bg4 {[%clk 00:13:40]} {[%emt 00:00:06]} Nh4 {[%clk
00:12:16]} {[%emt 00:01:40]} 21. Qb3 {[%clk 00:12:52]} {[%emt 00:00:53]} Bc6
{[%clk 00:11:12]} {[%emt 00:01:09]} 22. Nxd6 {[%clk 00:11:44]} {[%emt
00:01:13]} Qg5 {[%clk 00:10:37]} {[%emt 00:00:40]} 23. f3 {[%clk 00:10:28]}
{[%emt 00:01:21]} Rf8 {[%clk 00:08:01]} {[%emt 00:02:41]} 24. Kf2 {[%clk
00:08:10]} {[%emt 00:02:23]} Bxf3 {[%clk 00:06:26]} {[%emt 00:01:39]} 25. Bxf3
{[%clk 00:07:22]} {[%emt 00:00:53]} Qxg2+ {[%clk 00:06:24]} {[%emt 00:00:07]}
26. Ke3 {[%clk 00:04:32]} {[%emt 00:02:56]} Rxf3+ {[%clk 00:06:23]} {[%emt
00:00:06]} 27. Ke4 {[%clk 00:04:31]} {[%emt 00:00:05]} Qg4+ {[%clk 00:06:07]}
{[%emt 00:00:22]} 28. Ke5 {[%clk 00:04:17]} {[%emt 00:00:19]} Rh5+ {[%clk
00:06:06]} {[%emt 00:00:06]} 29. Nf5 {[%clk 00:04:09]} {[%emt 00:00:12]} Rxb3
{[%clk 00:06:04]} {[%emt 00:00:08]} 30. Rd8+ {[%clk 00:03:41]} {[%emt
00:00:33]} Kf7 {[%clk 00:05:49]} {[%emt 00:00:20]} 31. Rd7+ {[%clk 00:03:45]}
{[%emt 00:00:02]} Ke8 {[%clk 00:05:53]} 32. Re7+ {[%clk 00:03:46]} {[%emt
00:00:03]} Kd8 {[%clk 00:05:42]} {[%emt 00:00:16]} 33. Rd1+ {[%clk 00:03:50]}
Kc8 {[%clk 00:05:35]} {[%emt 00:00:13]} 34. Re8+ {[%clk 00:03:29]} {[%emt
00:00:26]} Kc7 {[%clk 00:05:31]} {[%emt 00:00:09]} 35. Re7+ {[%clk 00:03:33]}
Kb6 {[%clk 00:05:31]} {[%emt 00:00:05]} 36. Rd6+ {[%clk 00:03:26]} {[%emt
00:00:11]} Ka5 {[%clk 00:05:34]} {[%emt 00:00:03]} 37. axb3 {[%clk 00:03:19]}
{[%emt 00:00:12]} Rxf5 {[%emt 00:00:22]} 0-1



[ePGN "0.1;DGT LiveChess/2.2.6"]